[Event "Late-Titled-Tuesday-Blitz-February-27-2024"]
[Site "Chess.com"]
[Date "2024.02.27"]
[Round "7"]
[White "DryCounty"]
[Black "Josetricks"]
[Result "1/2-1/2"]
[WhiteElo "2661"]
[BlackElo "2479"]
[TimeControl "180+1"]
[EndTime "15:18:13 PST"]
[Termination "Game drawn by stalemate"]

1. e4 {[%clk 0:02:55.2]} 1... g6 {[%clk 0:02:59.1]} 2. d4 {[%clk 0:02:54]} 2...
Bg7 {[%clk 0:02:59.5]} 3. Nf3 {[%clk 0:02:54.4]} 3... c6 {[%clk 0:02:59.5]} 4.
c3 {[%clk 0:02:52.7]} 4... d5 {[%clk 0:03:00]} 5. Nbd2 {[%clk 0:02:49.5]} 5...
dxe4 {[%clk 0:02:59.9]} 6. Nxe4 {[%clk 0:02:48.9]} 6... Nf6 {[%clk 0:03:00.8]}
7. Bd3 {[%clk 0:02:46.8]} 7... O-O {[%clk 0:02:57.3]} 8. O-O {[%clk 0:02:46.4]}
8... Nxe4 {[%clk 0:02:56.5]} 9. Bxe4 {[%clk 0:02:46.2]} 9... Nd7 {[%clk
0:02:57.4]} 10. h3 {[%clk 0:02:43.1]} 10... e5 {[%clk 0:02:56.7]} 11. Bg5 {[%clk
0:02:39.5]} 11... Qa5 {[%clk 0:02:47.4]} 12. b4 {[%clk 0:02:19.2]} 12... Qb6
{[%clk 0:02:39.9]} 13. Be3 {[%clk 0:02:05.2]} 13... Qc7 {[%clk 0:02:34.9]} 14.
Qb3 {[%clk 0:01:54]} 14... Re8 {[%clk 0:02:19.1]} 15. Rfe1 {[%clk 0:01:46.5]}
15... Nf6 {[%clk 0:02:12.4]} 16. Bc2 {[%clk 0:01:44.9]} 16... Be6 {[%clk
0:02:00.3]} 17. Qb2 {[%clk 0:01:37.5]} 17... exd4 {[%clk 0:01:47.3]} 18. Bxd4
{[%clk 0:01:34.4]} 18... Rad8 {[%clk 0:01:41.5]} 19. Ng5 {[%clk 0:01:21.2]}
19... Bc4 {[%clk 0:01:32.8]} 20. Bb3 {[%clk 0:01:13.5]} 20... Bxb3 {[%clk
0:01:28]} 21. axb3 {[%clk 0:01:08.6]} 21... a6 {[%clk 0:01:27.4]} 22. Nf3 {[%clk
0:00:59.5]} 22... Nh5 {[%clk 0:01:17.7]} 23. Bxg7 {[%clk 0:00:59]} 23... Nxg7
{[%clk 0:01:18.3]} 24. c4 {[%clk 0:00:57.8]} 24... Ne6 {[%clk 0:01:12.7]} 25.
Qf6 {[%clk 0:00:56.6]} 25... Qe7 {[%clk 0:00:57.1]} 26. Qc3 {[%clk 0:00:56.1]}
26... Qd6 {[%clk 0:00:50.6]} 27. Ne5 {[%clk 0:00:54.9]} 27... Qd4 {[%clk
0:00:46.8]} 28. Qxd4 {[%clk 0:00:48.2]} 28... Nxd4 {[%clk 0:00:44.5]} 29. Ng4
{[%clk 0:00:47.4]} 29... Kg7 {[%clk 0:00:39.2]} 30. Rxe8 {[%clk 0:00:45.2]}
30... Rxe8 {[%clk 0:00:40.1]} 31. Rd1 {[%clk 0:00:42.3]} 31... Nxb3 {[%clk
0:00:28.1]} 32. Rd7 {[%clk 0:00:42.7]} 32... b5 {[%clk 0:00:27]} 33. cxb5 {[%clk
0:00:42.8]} 33... axb5 {[%clk 0:00:21.3]} 34. f4 {[%clk 0:00:43.1]} 34... Re4
{[%clk 0:00:15.4]} 35. g3 {[%clk 0:00:42.6]} 35... Rd4 {[%clk 0:00:12.5]} 36.
Rc7 {[%clk 0:00:39.3]} 36... Rxb4 {[%clk 0:00:08.2]} 37. Ne5 {[%clk 0:00:39.2]}
37... Nd4 {[%clk 0:00:07.3]} 38. Rxf7+ {[%clk 0:00:38.8]} 38... Kg8 {[%clk
0:00:07.9]} 39. Rc7 {[%clk 0:00:34.8]} 39... Rb1+ {[%clk 0:00:06.7]} 40. Kg2
{[%clk 0:00:34.5]} 40... Rc1 {[%clk 0:00:07.1]} 41. Rd7 {[%clk 0:00:31.5]} 41...
c5 {[%clk 0:00:05.8]} 42. g4 {[%clk 0:00:28.9]} 42... Rc2+ {[%clk 0:00:05.9]}
43. Kg3 {[%clk 0:00:28.2]} 43... Rc3+ {[%clk 0:00:05.7]} 44. Kh4 {[%clk
0:00:24.2]} 44... Nf3+ {[%clk 0:00:05.9]} 45. Nxf3 {[%clk 0:00:23.9]} 45... Rxf3
{[%clk 0:00:06.8]} 46. Kg5 {[%clk 0:00:19.5]} 46... Re3 {[%clk 0:00:01.8]} 47.
Kf6 {[%clk 0:00:18.7]} 47... Re8 {[%clk 0:00:02.4]} 48. Rc7 {[%clk 0:00:17.7]}
48... Rf8+ {[%clk 0:00:02.4]} 49. Kg5 {[%clk 0:00:17.9]} 49... c4 {[%clk
0:00:01.8]} 50. f5 {[%clk 0:00:16.8]} 50... gxf5 {[%clk 0:00:01.2]} 51. gxf5
{[%clk 0:00:16.6]} 51... Rb8 {[%clk 0:00:01.2]} 52. h4 {[%clk 0:00:07.6]} 52...
b4 {[%clk 0:00:01.8]} 53. Rxc4 {[%clk 0:00:07.1]} 53... b3 {[%clk 0:00:02.4]}
54. Rc1 {[%clk 0:00:07.5]} 54... b2 {[%clk 0:00:03]} 55. Rb1 {[%clk 0:00:08]}
55... Kf7 {[%clk 0:00:03.7]} 56. h5 {[%clk 0:00:07]} 56... Rb5 {[%clk
0:00:03.1]} 57. h6 {[%clk 0:00:06.9]} 57... Rb4 {[%clk 0:00:02.4]} 58. f6 {[%clk
0:00:05.7]} 58... Rb5+ {[%clk 0:00:02.4]} 59. Kf4 {[%clk 0:00:05.7]} 59... Kxf6
{[%clk 0:00:03]} 60. Ke4 {[%clk 0:00:05.8]} 60... Kg6 {[%clk 0:00:03.4]} 61.
Rg1+ {[%clk 0:00:05.2]} 61... Kxh6 {[%clk 0:00:03.7]} 62. Rh1+ {[%clk
0:00:05.5]} 62... Kg6 {[%clk 0:00:04.1]} 63. Rb1 {[%clk 0:00:05.8]} 63... h5
{[%clk 0:00:03.6]} 64. Kf4 {[%clk 0:00:06.2]} 64... Rb4+ {[%clk 0:00:03.5]} 65.
Kg3 {[%clk 0:00:06.3]} 65... Kg5 {[%clk 0:00:04]} 66. Kf3 {[%clk 0:00:06.5]}
66... h4 {[%clk 0:00:04.1]} 67. Kg2 {[%clk 0:00:06.5]} 67... Kg4 {[%clk
0:00:04.4]} 68. Kh2 {[%clk 0:00:06.9]} 68... h3 {[%clk 0:00:04.8]} 69. Kg1
{[%clk 0:00:06.9]} 69... Kg3 {[%clk 0:00:05.2]} 70. Kh1 {[%clk 0:00:07.2]} 70...
Rb3 {[%clk 0:00:05.3]} 71. Rg1+ {[%clk 0:00:06.8]} 71... Kh4 {[%clk 0:00:04.7]}
72. Rb1 {[%clk 0:00:07.7]} 72... Kg3 {[%clk 0:00:03]} 73. Rg1+ {[%clk
0:00:07.6]} 73... Kf2 {[%clk 0:00:03.6]} 74. Rb1 {[%clk 0:00:06.7]} 74... Ke2
{[%clk 0:00:03.9]} 75. Kh2 {[%clk 0:00:06.5]} 75... Kd2 {[%clk 0:00:04.4]} 76.
Rh1 {[%clk 0:00:04.3]} 76... b1=Q {[%clk 0:00:04.1]} 77. Rc1 {[%clk 0:00:04.1]}
77... Qxc1 {[%clk 0:00:03.5]} 1/2-1/2

[Event "Late-Titled-Tuesday-Blitz-February-27-2024"]
[Site "Chess.com"]
[Date "2024.02.27"]
[Round "7"]
[White "IngOscarArdila"]
[Black "toninhojit"]
[Result "0-1"]
[WhiteElo "2285"]
[BlackElo "2465"]
[TimeControl "180+1"]
[EndTime "15:19:01 PST"]
[Termination "toninhojit won by resignation"]

1. d4 {[%clk 0:02:58.8]} 1... Nf6 {[%clk 0:02:55.1]} 2. c4 {[%clk 0:02:58.5]}
2... c5 {[%clk 0:02:54.3]} 3. dxc5 {[%clk 0:02:57.5]} 3... e6 {[%clk 0:02:54.9]}
4. Nf3 {[%clk 0:02:58.3]} 4... Bxc5 {[%clk 0:02:54.2]} 5. e3 {[%clk 0:02:57.6]}
5... d5 {[%clk 0:02:53.4]} 6. Be2 {[%clk 0:02:57.2]} 6... O-O {[%clk 0:02:53.4]}
7. O-O {[%clk 0:02:57.3]} 7... Nc6 {[%clk 0:02:53.4]} 8. Nc3 {[%clk 0:02:57.5]}
8... a6 {[%clk 0:02:51.5]} 9. a3 {[%clk 0:02:55.2]} 9... Qe7 {[%clk 0:02:51.5]}
10. b4 {[%clk 0:02:55]} 10... Ba7 {[%clk 0:02:51.1]} 11. Qb3 {[%clk 0:02:53.5]}
11... Rd8 {[%clk 0:02:46.8]} 12. Bb2 {[%clk 0:02:51.9]} 12... Bd7 {[%clk
0:02:41.3]} 13. Rfd1 {[%clk 0:02:51.4]} 13... dxc4 {[%clk 0:02:37.9]} 14. Bxc4
{[%clk 0:02:50.9]} 14... Be8 {[%clk 0:02:38.5]} 15. Rac1 {[%clk 0:02:46.3]}
15... Rac8 {[%clk 0:02:29.5]} 16. h3 {[%clk 0:02:39.1]} 16... Bb8 {[%clk
0:02:29.6]} 17. Be2 {[%clk 0:02:09.5]} 17... h6 {[%clk 0:02:28]} 18. Na4 {[%clk
0:02:05.2]} 18... Nd5 {[%clk 0:02:02.8]} 19. Nc5 {[%clk 0:01:56.8]} 19... Bd6
{[%clk 0:01:55.3]} 20. Ne4 {[%clk 0:01:55.3]} 20... Bb8 {[%clk 0:01:50.9]} 21.
Nc5 {[%clk 0:01:42.7]} 21... Bd6 {[%clk 0:01:48.5]} 22. Ne4 {[%clk 0:01:41]}
22... Bb8 {[%clk 0:01:47.5]} 23. Bc4 {[%clk 0:01:39.7]} 23... Nb6 {[%clk
0:01:33.9]} 24. Bf1 {[%clk 0:01:31.7]} 24... f6 {[%clk 0:01:33.9]} 25. Nc5
{[%clk 0:01:24]} 25... Bf7 {[%clk 0:01:34.3]} 26. Qc2 {[%clk 0:00:45.8]} 26...
e5 {[%clk 0:01:30.5]} 27. Nh4 {[%clk 0:00:40.8]} 27... Rxd1 {[%clk 0:01:19.3]}
28. Rxd1 {[%clk 0:00:40.4]} 28... Qf8 {[%clk 0:01:06.3]} 29. Nf5 {[%clk
0:00:38.7]} 29... g6 {[%clk 0:00:52.5]} 30. Ng3 {[%clk 0:00:36.8]} 30... Kg7
{[%clk 0:00:47.2]} 31. Nge4 {[%clk 0:00:27.6]} 31... a5 {[%clk 0:00:47.1]} 32.
b5 {[%clk 0:00:26]} 32... Ne7 {[%clk 0:00:45]} 33. a4 {[%clk 0:00:16.4]} 33...
Ned5 {[%clk 0:00:44.3]} 34. Ba3 {[%clk 0:00:14.8]} 34... Nb4 {[%clk 0:00:40.4]}
35. Qd2 {[%clk 0:00:10.4]} 35... Qe7 {[%clk 0:00:24.4]} 36. Nd3 {[%clk
0:00:07.3]} 36... Nc4 {[%clk 0:00:22.8]} 37. Bxb4 {[%clk 0:00:05.6]} 37... axb4
{[%clk 0:00:20.5]} 38. Qe1 {[%clk 0:00:05.5]} 38... b3 {[%clk 0:00:18.2]} 39.
Qb4 {[%clk 0:00:05.3]} 39... Qxb4 {[%clk 0:00:17.2]} 40. Nxb4 {[%clk 0:00:06.2]}
40... Na3 {[%clk 0:00:15.7]} 41. Nd3 {[%clk 0:00:05.4]} 41... Rd8 {[%clk
0:00:14.7]} 42. Nd2 {[%clk 0:00:03.1]} 42... b6 {[%clk 0:00:14.4]} 43. Nxb3
{[%clk 0:00:03.3]} 43... Bxb3 {[%clk 0:00:13.5]} 44. Rc1 {[%clk 0:00:04.2]}
44... Be6 {[%clk 0:00:11.4]} 45. Ne1 {[%clk 0:00:04.4]} 45... Rc8 {[%clk
0:00:11.8]} 46. Rd1 {[%clk 0:00:03.9]} 46... Nc4 {[%clk 0:00:10.2]} 47. Nf3
{[%clk 0:00:04]} 47... Nd6 {[%clk 0:00:10.4]} 48. Rd2 {[%clk 0:00:02.7]} 48...
Nf7 {[%clk 0:00:11]} 49. Rd1 {[%clk 0:00:03]} 49... Rd8 {[%clk 0:00:11.6]} 50.
Rc1 {[%clk 0:00:02.6]} 50... Bd6 {[%clk 0:00:12.3]} 51. a5 {[%clk 0:00:02.9]}
51... Bc5 {[%clk 0:00:13]} 52. a6 {[%clk 0:00:02.9]} 52... Bd7 {[%clk 0:00:12]}
53. Ne1 {[%clk 0:00:03.2]} 53... Kf8 {[%clk 0:00:12.2]} 54. Rd1 {[%clk
0:00:03.5]} 54... Ke7 {[%clk 0:00:11.6]} 55. Rb1 {[%clk 0:00:03.5]} 55... Be6
{[%clk 0:00:10.8]} 56. Be2 {[%clk 0:00:03.3]} 56... Nd6 {[%clk 0:00:10.2]} 57.
Nd3 {[%clk 0:00:03.6]} 57... Rc8 {[%clk 0:00:08.6]} 58. Nb4 {[%clk 0:00:02.3]}
58... Bxb4 {[%clk 0:00:08.4]} 59. Rxb4 {[%clk 0:00:03.2]} 59... Rc7 {[%clk
0:00:07.5]} 60. Rb1 {[%clk 0:00:03.1]} 60... Nc8 {[%clk 0:00:08.1]} 61. Bf3
{[%clk 0:00:03.4]} 61... Na7 {[%clk 0:00:08.6]} 62. Bb7 {[%clk 0:00:03.1]} 62...
f5 {[%clk 0:00:08.8]} 63. f4 {[%clk 0:00:02.8]} 63... e4 {[%clk 0:00:09.1]} 64.
g4 {[%clk 0:00:03]} 64... Bc8 {[%clk 0:00:09.4]} 65. gxf5 {[%clk 0:00:03.1]}
65... gxf5 {[%clk 0:00:07.2]} 66. Bxc8 {[%clk 0:00:03.1]} 66... Rxc8 {[%clk
0:00:08.1]} 67. Kf2 {[%clk 0:00:03.6]} 67... Rc5 {[%clk 0:00:07.9]} 68. Kg3
{[%clk 0:00:03.8]} 68... Rxb5 {[%clk 0:00:08.4]} 69. Rd1 {[%clk 0:00:04.5]}
69... Ra5 {[%clk 0:00:07.6]} 70. Kh4 {[%clk 0:00:05.4]} 70... Rxa6 {[%clk
0:00:07.2]} 71. Kh5 {[%clk 0:00:05.7]} 71... Nc6 {[%clk 0:00:07.2]} 72. Kxh6
{[%clk 0:00:06.1]} 72... Ra3 {[%clk 0:00:08.1]} 73. Re1 {[%clk 0:00:04.8]} 73...
Nb4 {[%clk 0:00:08.3]} 74. Kg5 {[%clk 0:00:04.7]} 74... Ke6 {[%clk 0:00:08.9]}
75. h4 {[%clk 0:00:05.1]} 75... Nd3 {[%clk 0:00:09.6]} 76. Rc1 {[%clk
0:00:03.5]} 76... b5 {[%clk 0:00:08.9]} 77. Rc6+ {[%clk 0:00:03.5]} 77... Kd5
{[%clk 0:00:09.1]} 78. Rc8 {[%clk 0:00:03.5]} 78... b4 {[%clk 0:00:09]} 79. h5
{[%clk 0:00:03.9]} 79... b3 {[%clk 0:00:09.2]} 80. h6 {[%clk 0:00:04.3]} 80...
Ra7 {[%clk 0:00:08.2]} 81. Rb8 {[%clk 0:00:03.8]} 81... Nc5 {[%clk 0:00:07.3]}
82. Kxf5 {[%clk 0:00:03.1]} 82... Nb7 {[%clk 0:00:05.1]} 83. h7 {[%clk
0:00:02.4]} 83... Nd6+ {[%clk 0:00:05.4]} 84. Kg6 {[%clk 0:00:01.4]} 84... Kc4
{[%clk 0:00:02.7]} 85. Rxb3 {[%clk 0:00:01.3]} 85... Rxh7 {[%clk 0:00:01.4]} 86.
f5 {[%clk 0:00:02.2]} 86... Kxb3 {[%clk 0:00:01.7]} 87. Kxh7 {[%clk 0:00:02.6]}
87... Nxf5 {[%clk 0:00:02.3]} 88. Kg6 {[%clk 0:00:02.8]} 88... Nd6 {[%clk
0:00:02.4]} 89. Kf6 {[%clk 0:00:02.8]} 89... Kc3 {[%clk 0:00:03]} 90. Ke5 {[%clk
0:00:03.7]} 90... Kd3 {[%clk 0:00:03.7]} 91. Kf4 {[%clk 0:00:03.4]} 91... Nc4
{[%clk 0:00:03.6]} 92. Kg3 {[%clk 0:00:03.4]} 92... Kxe3 {[%clk 0:00:04.5]} 93.
Kg2 {[%clk 0:00:03.3]} 93... Kd3 {[%clk 0:00:05]} 0-1

[Event "Late-Titled-Tuesday-Blitz-February-27-2024"]
[Site "Chess.com"]
[Date "2024.02.27"]
[Round "8"]
[White "Yaacovn"]
[Black "NoHeThTo"]
[Result "1-0"]
[WhiteElo "2844"]
[BlackElo "2650"]
[TimeControl "180+1"]
[EndTime "15:21:29 PST"]
[Termination "Yaacovn won by resignation"]

1. d4 {[%clk 0:03:00.9]} 1... Nf6 {[%clk 0:02:58.7]} 2. e3 {[%clk 0:02:55.1]}
2... e6 {[%clk 0:02:58.2]} 3. Bd3 {[%clk 0:02:52.1]} 3... b6 {[%clk 0:02:57.5]}
4. f4 {[%clk 0:02:52.1]} 4... Bb7 {[%clk 0:02:57.6]} 5. Nf3 {[%clk 0:02:48.7]}
5... c5 {[%clk 0:02:57.2]} 6. c3 {[%clk 0:02:48.6]} 6... Nc6 {[%clk 0:02:48.8]}
7. O-O {[%clk 0:02:45.6]} 7... d5 {[%clk 0:02:44.5]} 8. Nbd2 {[%clk 0:02:45.4]}
8... Qc8 {[%clk 0:02:36.2]} 9. Ne5 {[%clk 0:02:45.2]} 9... Ba6 {[%clk
0:02:27.3]} 10. Bxa6 {[%clk 0:02:44.9]} 10... Qxa6 {[%clk 0:02:25.9]} 11. Nxc6
{[%clk 0:02:45.2]} 1-0

[Event "Late-Titled-Tuesday-Blitz-February-27-2024"]
[Site "Chess.com"]
[Date "2024.02.27"]
[Round "8"]
[White "emeli_chess"]
[Black "waltereador"]
[Result "1-0"]
[WhiteElo "2432"]
[BlackElo "2291"]
[TimeControl "180+1"]
[EndTime "15:22:39 PST"]
[Termination "emeli_chess won by resignation"]

1. d4 {[%clk 0:03:00.9]} 1... e5 {[%clk 0:02:50.4]} 2. dxe5 {[%clk 0:02:58.4]}
2... Nc6 {[%clk 0:02:50]} 3. Nf3 {[%clk 0:02:56.9]} 3... Qe7 {[%clk 0:02:50.1]}
4. Bg5 {[%clk 0:02:54.9]} 4... Qb4+ {[%clk 0:02:44.7]} 5. Bd2 {[%clk 0:02:51.2]}
5... Qxb2 {[%clk 0:02:43.3]} 6. Nc3 {[%clk 0:02:51.4]} 6... Qa3 {[%clk
0:02:37.5]} 7. Rb1 {[%clk 0:02:49.1]} 7... Bb4 {[%clk 0:02:33.1]} 8. Rb3 {[%clk
0:02:48.8]} 8... Qa5 {[%clk 0:02:33.2]} 9. e4 {[%clk 0:02:44.1]} 9... Nge7
{[%clk 0:02:32.5]} 10. Bd3 {[%clk 0:02:26.2]} 10... a6 {[%clk 0:02:25]} 11. O-O
{[%clk 0:02:25.5]} 11... O-O {[%clk 0:02:24.3]} 12. Nd5 {[%clk 0:02:04.6]} 12...
Bxd2 {[%clk 0:02:22]} 13. Nxe7+ {[%clk 0:01:53.5]} 13... Nxe7 {[%clk 0:02:20.3]}
14. Qxd2 {[%clk 0:01:53.2]} 14... Ng6 {[%clk 0:02:17.5]} 15. Qxa5 {[%clk
0:01:52.1]} 1-0

[Event "Late-Titled-Tuesday-Blitz-February-27-2024"]
[Site "Chess.com"]
[Date "2024.02.27"]
[Round "8"]
[White "igorknyazev"]
[Black "Bkmzzzzz"]
[Result "0-1"]
[WhiteElo "2214"]
[BlackElo "2407"]
[TimeControl "180+1"]
[EndTime "15:22:57 PST"]
[Termination "Bkmzzzzz won by resignation"]

1. e4 {[%clk 0:03:00.9]} 1... d6 {[%clk 0:03:00.1]} 2. d4 {[%clk 0:03:00.6]}
2... Nf6 {[%clk 0:03:00.5]} 3. Nc3 {[%clk 0:02:59.9]} 3... e5 {[%clk 0:03:01]}
4. dxe5 {[%clk 0:02:59.3]} 4... dxe5 {[%clk 0:03:01.9]} 5. Bg5 {[%clk
0:02:58.5]} 5... Be6 {[%clk 0:02:59.8]} 6. Nf3 {[%clk 0:02:54.2]} 6... Qxd1+
{[%clk 0:02:48.1]} 7. Rxd1 {[%clk 0:02:53.3]} 7... Nbd7 {[%clk 0:02:47.5]} 8.
Be2 {[%clk 0:02:28.4]} 8... Bb4 {[%clk 0:02:44.7]} 9. O-O {[%clk 0:02:27.6]}
9... Bxc3 {[%clk 0:02:42.4]} 10. bxc3 {[%clk 0:02:27.6]} 10... Nxe4 {[%clk
0:02:42.1]} 11. c4 {[%clk 0:02:19.2]} 11... Nc3 {[%clk 0:02:27.8]} 12. Rd2
{[%clk 0:02:16.6]} 12... Nxe2+ {[%clk 0:02:27.3]} 13. Rxe2 {[%clk 0:01:46.5]}
13... Bxc4 {[%clk 0:02:27.3]} 14. Rfe1 {[%clk 0:01:47.2]} 14... Bxe2 {[%clk
0:02:27.2]} 15. Rxe2 {[%clk 0:01:48.1]} 15... f6 {[%clk 0:02:27.2]} 16. Bd2
{[%clk 0:01:43.3]} 16... O-O-O {[%clk 0:02:26.7]} 17. Bb4 {[%clk 0:01:42.8]}
17... Nb6 {[%clk 0:02:25.5]} 18. Nh4 {[%clk 0:01:42.7]} 18... Rd4 {[%clk
0:02:22.9]} 19. c3 {[%clk 0:01:37]} 19... Rxh4 {[%clk 0:02:22.8]} 0-1

[Event "Late-Titled-Tuesday-Blitz-February-27-2024"]
[Site "Chess.com"]
[Date "2024.02.27"]
[Round "8"]
[White "GlavkonVVS"]
[Black "Rutricks"]
[Result "0-1"]
[WhiteElo "2524"]
[BlackElo "2699"]
[TimeControl "180+1"]
[EndTime "15:23:01 PST"]
[Termination "Rutricks won by resignation"]

1. c4 {[%clk 0:03:00.9]} 1... g6 {[%clk 0:02:59.4]} 2. Nc3 {[%clk 0:03:01]} 2...
Bg7 {[%clk 0:03:00.3]} 3. Nf3 {[%clk 0:03:01.3]} 3... d6 {[%clk 0:03:01]} 4. d4
{[%clk 0:03:01.6]} 4... Nd7 {[%clk 0:03:01.7]} 5. Bg5 {[%clk 0:03:01.8]} 5...
Ngf6 {[%clk 0:03:02]} 6. h3 {[%clk 0:03:02.1]} 6... h6 {[%clk 0:03:02.6]} 7. Bh4
{[%clk 0:03:02.2]} 7... O-O {[%clk 0:03:03.3]} 8. e3 {[%clk 0:03:02.5]} 8... e5
{[%clk 0:03:04]} 9. Be2 {[%clk 0:03:02.7]} 9... Re8 {[%clk 0:03:04.4]} 10. O-O
{[%clk 0:03:03]} 10... c6 {[%clk 0:03:04.4]} 11. b4 {[%clk 0:03:01.9]} 11... Qc7
{[%clk 0:03:03.7]} 12. Rc1 {[%clk 0:03:01.3]} 12... Nh5 {[%clk 0:03:03.6]} 13.
g4 {[%clk 0:03:00.8]} 13... Nhf6 {[%clk 0:03:02.2]} 14. Bg3 {[%clk 0:03:00.9]}
14... Nh7 {[%clk 0:02:44.4]} 15. c5 {[%clk 0:03:00.8]} 15... dxc5 {[%clk
0:02:40.2]} 16. bxc5 {[%clk 0:02:58.6]} 16... Qa5 {[%clk 0:02:38.1]} 17. Qb3
{[%clk 0:02:50]} 17... exd4 {[%clk 0:02:24.8]} 18. exd4 {[%clk 0:02:50]} 18...
Ndf8 {[%clk 0:02:16.9]} 19. Bc4 {[%clk 0:02:49.4]} 19... Be6 {[%clk 0:02:17.4]}
20. Ne4 {[%clk 0:02:27]} 20... Bxc4 {[%clk 0:02:13.5]} 21. Qxc4 {[%clk
0:02:26.8]} 21... Rxe4 {[%clk 0:02:12.8]} 22. Rb1 {[%clk 0:02:26.2]} 22... Qa6
{[%clk 0:02:02.7]} 23. Qxa6 {[%clk 0:02:16.7]} 23... bxa6 {[%clk 0:02:03.6]} 24.
Rfd1 {[%clk 0:02:09.9]} 24... Ne6 {[%clk 0:02:03.7]} 25. d5 {[%clk 0:02:08.2]}
25... cxd5 {[%clk 0:02:00.7]} 26. Rxd5 {[%clk 0:02:08.4]} 26... Nf6 {[%clk
0:02:01.3]} 0-1

[Event "Late-Titled-Tuesday-Blitz-February-27-2024"]
[Site "Chess.com"]
[Date "2024.02.27"]
[Round "8"]
[White "DeTimmerman"]
[Black "Oleksandr_Bortnyk"]
[Result "0-1"]
[WhiteElo "2743"]
[BlackElo "3046"]
[TimeControl "180+1"]
[EndTime "15:23:48 PST"]
[Termination "Oleksandr_Bortnyk won by resignation"]

1. b4 {[%clk 0:03:00.3]} 1... f6 {[%clk 0:02:49.1]} 2. Bb2 {[%clk 0:03:00]} 2...
Kf7 {[%clk 0:02:49.8]} 3. e3 {[%clk 0:03:00]} 3... e5 {[%clk 0:02:50.3]} 4. a3
{[%clk 0:03:00.5]} 4... d5 {[%clk 0:02:50.3]} 5. c4 {[%clk 0:03:01]} 5... c6
{[%clk 0:02:50.4]} 6. Nf3 {[%clk 0:03:00.4]} 6... Bd6 {[%clk 0:02:46.1]} 7. cxd5
{[%clk 0:03:00.6]} 7... cxd5 {[%clk 0:02:47]} 8. Be2 {[%clk 0:02:59.5]} 8... Be6
{[%clk 0:02:46.6]} 9. O-O {[%clk 0:02:58.7]} 9... Ne7 {[%clk 0:02:47.2]} 10. Nc3
{[%clk 0:02:57.1]} 10... a6 {[%clk 0:02:47.8]} 11. h3 {[%clk 0:02:55.5]} 11...
Nd7 {[%clk 0:02:44.5]} 12. d3 {[%clk 0:02:53.5]} 12... Rc8 {[%clk 0:02:42.1]}
13. Rc1 {[%clk 0:02:53]} 13... b5 {[%clk 0:02:41.1]} 14. Nd2 {[%clk 0:02:50.6]}
14... Nb6 {[%clk 0:02:41.2]} 15. Nb3 {[%clk 0:02:50.6]} 15... h5 {[%clk
0:02:33.6]} 16. Bxh5+ {[%clk 0:02:48.3]} 16... g6 {[%clk 0:02:33.8]} 17. Bg4
{[%clk 0:02:48.8]} 17... f5 {[%clk 0:02:29.2]} 18. Be2 {[%clk 0:02:48.9]} 18...
Qg8 {[%clk 0:02:17.6]} 19. f4 {[%clk 0:02:48.3]} 19... d4 {[%clk 0:02:05]} 20.
fxe5 {[%clk 0:02:38.4]} 20... dxc3 {[%clk 0:02:01.9]} 21. Bxc3 {[%clk
0:02:23.5]} 21... Rxc3 {[%clk 0:01:36.5]} 22. Rxc3 {[%clk 0:02:24.4]} 22... Ned5
{[%clk 0:01:33.9]} 23. exd6 {[%clk 0:02:14.6]} 23... Nxc3 {[%clk 0:01:33.8]} 24.
Qc2 {[%clk 0:02:12.1]} 24... Nxe2+ {[%clk 0:01:34]} 25. Qxe2 {[%clk 0:02:13]}
25... Bxb3 {[%clk 0:01:32.3]} 26. e4 {[%clk 0:02:08.9]} 26... Be6 {[%clk
0:01:28.2]} 27. d4 {[%clk 0:02:02.8]} 27... Bc4 {[%clk 0:01:27.9]} 28. Qe3
{[%clk 0:01:57]} 28... Bxf1 {[%clk 0:01:27.5]} 29. Qg5 {[%clk 0:01:57.6]} 29...
Qd8 {[%clk 0:01:26.3]} 0-1

[Event "Late-Titled-Tuesday-Blitz-February-27-2024"]
[Site "Chess.com"]
[Date "2024.02.27"]
[Round "8"]
[White "Boninknights"]
[Black "ImportedItalianMaple"]
[Result "1-0"]
[WhiteElo "2397"]
[BlackElo "2491"]
[TimeControl "180+1"]
[EndTime "15:24:15 PST"]
[Termination "Boninknights won by checkmate"]

1. d4 {[%clk 0:02:59.7]} 1... g6 {[%clk 0:03:00.1]} 2. Bg5 {[%clk 0:02:55.9]}
2... Bg7 {[%clk 0:02:57.9]} 3. c3 {[%clk 0:02:55.7]} 3... h6 {[%clk 0:02:55.9]}
4. Bh4 {[%clk 0:02:54.2]} 4... c5 {[%clk 0:02:54.7]} 5. e3 {[%clk 0:02:51.5]}
5... Nf6 {[%clk 0:02:51.2]} 6. Nd2 {[%clk 0:02:49.3]} 6... cxd4 {[%clk
0:02:49.2]} 7. exd4 {[%clk 0:02:48.4]} 7... d6 {[%clk 0:02:49.4]} 8. Ngf3 {[%clk
0:02:38.4]} 8... O-O {[%clk 0:02:49.6]} 9. Bc4 {[%clk 0:02:34.4]} 9... Nc6
{[%clk 0:02:48.6]} 10. O-O {[%clk 0:02:32.3]} 10... e5 {[%clk 0:02:48.4]} 11.
dxe5 {[%clk 0:02:30]} 11... dxe5 {[%clk 0:02:49]} 12. b4 {[%clk 0:02:21.6]}
12... Qc7 {[%clk 0:02:43.4]} 13. Qb3 {[%clk 0:02:06.6]} 13... Ne7 {[%clk
0:02:29.2]} 14. Rfe1 {[%clk 0:02:01.8]} 14... Nf5 {[%clk 0:02:23.4]} 15. Bxf6
{[%clk 0:01:58.2]} 15... Bxf6 {[%clk 0:02:23]} 16. Ne4 {[%clk 0:01:56.5]} 16...
Bg7 {[%clk 0:02:23.3]} 17. Rad1 {[%clk 0:01:50.9]} 17... Re8 {[%clk 0:02:16.9]}
18. g4 {[%clk 0:01:45.8]} 18... Nh4 {[%clk 0:01:54.3]} 19. Nxh4 {[%clk
0:01:43.1]} 19... Bxg4 {[%clk 0:01:54.9]} 20. Rd6 {[%clk 0:01:32.4]} 20... Rac8
{[%clk 0:01:54.7]} 21. Rxg6 {[%clk 0:01:26.5]} 21... Bh5 {[%clk 0:01:48.5]} 22.
Nf6+ {[%clk 0:01:16.9]} 22... Kh8 {[%clk 0:01:43.8]} 23. Rxg7 {[%clk 0:01:14.5]}
23... Qxc4 {[%clk 0:01:34.7]} 24. Rh7# {[%clk 0:01:13.1]} 1-0